fUSD/lending_fUSD_20251215
["ID","MTS","AMOUNT","RATE_DAILY","PERIOD"]
[398506849,1765764638581,-500.0,0.00016149,2]
[398506851,1765764638590,-500.0,0.00016149,2]
[398506853,1765764638599,-1000.0,0.00016149,2]
[398506855,1765764638608,-1502.0,0.00016149,2]
[398506857,1765764638617,-522.99910463,0.00016149,2]
[398506859,1765764638626,-1000.0,0.00016149,2]
[398506860,1765764638636,-1000.0,0.00016149,2]
[398506861,1765764638645,-713.46577038,0.00016149,2]
[398506862,1765764638654,-1432.61942738,0.00016149,2]
[398506863,1765764638663,-578.20924308,0.00016149,2]
[398506864,1765764638671,-251.37636031,0.00016149,2]
[398506865,1765764638680,-1000.0,0.00016149,2]
[398506866,1765764638689,-1000.0,0.00016149,2]
[398506867,1765764638697,-1000.0,0.00016149,2]
[398506868,1765764638706,-574.12855637,0.00016149,2]
[398506869,1765764638715,-1000.0,0.00016149,2]
[398506870,1765764638724,-1000.0,0.00016149,2]
[398506871,1765764638733,-1000.0,0.00016149,2]
[398506872,1765764638742,-1000.0,0.00016149,2]
[398506873,1765764638751,-1000.0,0.00016149,2]
[398506874,1765764638760,-1000.0,0.00016149,2]
[398506875,1765764638769,-652.75011174,0.00016149,2]
[398506901,1765764639131,-157.60922398,0.00016149,2]
[398506906,1765764639218,-620.0,0.00016149,2]
[398506908,1765764639228,-151.0,0.00016149,2]
[398506910,1765764639238,-151.0,0.00016149,2]
[398506912,1765764639247,-500.0,0.00016149,2]
[398506914,1765764639257,-500.0,0.00016149,2]
[398506916,1765764639267,-500.0,0.00016149,2]
[398506918,1765764639276,-500.0,0.00016149,2]
[398506920,1765764639285,-500.0,0.00016149,2]
[398506922,1765764639295,-536.62791263,0.00016149,2]
[398506924,1765764639304,-796.20617884,0.00016149,2]
[398506926,1765764639314,-241.0,0.00016206,2]
[398506928,1765764639323,-514.0,0.00016213,2]
[398506930,1765764639332,-2259.19916527,0.00016235,2]
[398506932,1765764639341,-229.03353551,0.00016237,2]
[398506934,1765764639351,-352.35573897,0.00016238,2]
[398506936,1765764639360,-213.0,0.00016239,2]
[398506938,1765764639369,-172.0,0.00016246,2]
[398506940,1765764639378,-166.66,0.00016249,2]
[398506942,1765764639387,-314.46985715,0.00016261,2]
[398506944,1765764639396,-176.82304004,0.00016263,2]
[398506946,1765764639406,-425.0,0.00016271,2]
[398506948,1765764639415,-320.0,0.00016278,2]
[398506950,1765764639424,-500.0,0.00016281,2]
[398506952,1765764639433,-957.62,0.00016284,2]
[398506954,1765764639444,-1070.0,0.00016308,2]
[398506956,1765764639454,-370.0,0.0001631,2]
[398506959,1765764639463,-4821.0,0.00016321,2]
[398506960,1765764639472,-391.0,0.00016323,2]
[398506962,1765764639481,-500.0,0.00016337,2]
[398506964,1765764639491,-500.0,0.00016337,2]
[398506966,1765764639500,-500.0,0.00016337,2]
[398506968,1765764639509,-500.0,0.00016337,2]
[398506970,1765764639518,-500.0,0.00016337,2]
[398506972,1765764639527,-500.0,0.00016337,2]
[398506974,1765764639536,-500.0,0.00016337,2]
[398506978,1765764639546,-505.15882305,0.00016337,2]
[398506979,1765764639555,-1000.0,0.00016338,2]
[398506982,1765764639564,-33469.4174,0.00016338,2]
[398506984,1765764639573,-1007.0,0.00016343,2]
[398506986,1765764639583,-1231.73271074,0.00016363,2]
[398506987,1765764639592,-518.0,0.00016375,2]
[398506989,1765764639601,-189.77,0.00016408,2]
[398506991,1765764639610,-1729.0,0.00016408,2]
[398506993,1765764639619,-500.0,0.00016438,2]
[398506995,1765764639628,-500.0,0.00016438,2]
[398506997,1765764639637,-500.0,0.00016438,2]
[398506999,1765764639647,-1940.0,0.0001644,2]
[398507002,1765764639657,-341.94,0.00016446,2]
[398507004,1765764639667,-575.0,0.00016472,2]
[398507005,1765764639676,-191.0,0.00016505,2]
[398507007,1765764639685,-172.16,0.00016508,2]
[398507009,1765764639694,-500.0,0.00016541,2]
[398507011,1765764639703,-303.24668496,0.00016555,2]
[398507013,1765764639712,-200.0,0.00016555,2]
[398507015,1765764639722,-505.55520051,0.00016555,2]
[398507018,1765764639732,-957.62,0.00016558,2]
[398507019,1765764639741,-500.0,0.00016562,2]
[398507021,1765764639751,-500.0,0.00016562,2]
[398507024,1765764639761,-500.0,0.00016562,2]
[398507026,1765764639770,-150.0,0.00016562,2]
[398507027,1765764639780,-186.75819186,0.00016562,2]
[398507030,1765764639789,-500.0,0.00016562,2]
[398507032,1765764639801,-265.7881195,0.00016562,2]
[398507033,1765764639810,-500.0,0.00016562,2]
[398507035,1765764639819,-245.87213918,0.00016562,2]
[398507036,1765764639828,-150.0,0.00016562,2]
[398507037,1765764639837,-252.3168751,0.00016562,2]
[398507038,1765764639846,-150.45296658,0.00016562,2]
[398507039,1765764639856,-150.0,0.00016562,2]
[398507040,1765764639865,-150.0,0.00016562,2]
[398507041,1765764639874,-500.0,0.00016562,2]
[398507042,1765764639883,-150.0,0.00016562,2]
[398507043,1765764639892,-150.88226754,0.00016562,2]
[398507044,1765764639901,-500.0,0.00016562,2]
[398507045,1765764639910,-1519.0,0.00016562,2]
[398507046,1765764639919,-152.89564994,0.00016562,2]
[398507047,1765764639929,-150.0,0.00016562,2]
[398507048,1765764639937,-500.0,0.00016562,2]
[398507049,1765764639947,-1000.0,0.00016562,2]
[398507050,1765764639956,-500.0,0.00016562,2]
[398507051,1765764639965,-150.0,0.00016562,2]
[398507052,1765764639974,-500.0,0.00016562,2]
[398507053,1765764639983,-150.84686874,0.00016562,2]
[398507054,1765764639992,-150.0,0.00016562,2]
[398507055,1765764640002,-500.0,0.00016562,2]
[398507056,1765764640011,-500.0,0.00016562,2]
[398507057,1765764640020,-150.0,0.00016562,2]
[398507058,1765764640029,-150.0,0.00016562,2]
[398507059,1765764640038,-500.0,0.00016562,2]
[398507060,1765764640048,-500.0,0.00016562,2]
[398507061,1765764640058,-500.0,0.00016562,2]
[398507062,1765764640072,-150.0,0.00016562,2]
[398507063,1765764640082,-150.0,0.00016562,2]
[398507064,1765764640091,-150.0,0.00016562,2]
[398507065,1765764640100,-500.0,0.00016562,2]
[398507066,1765764640110,-697.0,0.00016637,2]
[398507067,1765764640119,-1503.98712318,0.0001666,2]
[398507068,1765764640129,-20305.0590346,0.0001666,2]
[398507069,1765764640138,-5605.21414802,0.0001666,2]
[398507070,1765764640148,-643.547,0.0001667,2]
[398507071,1765764640157,-1264.235,0.0001667,2]
[398507072,1765764640166,-2926.89978343,0.00016673,2]
[398507073,1765764640179,-20.10021657,0.00016673,2]
[398507074,1765764640189,-539.0,0.00016685,2]
[398507075,1765764640198,-168.0,0.00016685,2]
[398507076,1765764640207,-6580.0893616,0.00016687,2]
[398507077,1765764640353,-347.053942,0.00016687,2]
[398507078,1765764640364,-3483.364536,0.00016687,2]
[398507079,1765764640375,-891.6289819,0.00016687,2]
[398507080,1765764640386,-893.32925327,0.00016687,2]
[398507081,1765764640398,-800.9724,0.00016687,2]
[398507082,1765764640417,-443.62317023,0.00016687,2]
[398507083,1765764640430,-2411.08095699,0.00016687,2]
[398507084,1765764640441,-4453.91643261,0.00016687,2]
[398507085,1765764640450,-500.0,0.00016688,2]
[398507086,1765764640459,-1502.0,0.00016697,2]
[398507087,1765764640468,-595.37131296,0.00016697,2]
[398507088,1765764640478,-500.0,0.00016699,2]
[398507089,1765764640487,-553.30440339,0.00016699,2]
[398507091,1765764640496,-500.0,0.00016699,2]
[398507093,1765764640505,-150.0,0.00016699,2]
[398507095,1765764640515,-500.0,0.00016699,2]
[398507096,1765764640523,-500.0,0.00016699,2]
[398507097,1765764640532,-158.68347547,0.00016699,2]
[398507098,1765764640543,-150.0,0.00016699,2]
[398507099,1765764640552,-500.0,0.00016699,2]
[398507100,1765764640561,-150.0,0.00016699,2]
[398507101,1765764640570,-500.0,0.00016699,2]
[398507102,1765764640579,-1519.0,0.00016699,2]
[398507103,1765764640588,-202.37009506,0.00016699,2]
[398507104,1765764640598,-500.0,0.00016699,2]
[398507105,1765764640606,-1000.0,0.00016699,2]
[398507106,1765764640615,-500.0,0.00016699,2]
[398507107,1765764640625,-151.57956727,0.00016699,2]
[398507108,1765764640634,-590.0606345,0.00016699,2]
[398507109,1765764640643,-202.36819027,0.00016699,2]
[398507110,1765764640652,-500.0,0.00016699,2]
[398507111,1765764640661,-500.0,0.00016699,2]
[398507112,1765764640670,-154.80042994,0.00016699,2]
[398507113,1765764640679,-500.0,0.00016699,2]
[398507114,1765764640688,-500.0,0.00016699,2]
[398507115,1765764640697,-557.15734767,0.00016699,2]
[398507116,1765764640706,-209.90590555,0.00016699,2]
[398507117,1765764640717,-500.0,0.00016699,2]
[398507118,1765764640726,-1009.0,0.000167,2]
[398507119,1765764640735,-20305.0590346,0.00016713,2]
[398507120,1765764640745,-10000.0,0.00016736,2]
[398507121,1765764640754,-20305.0590346,0.0001674,2]
[398507122,1765764640763,-150.9361352,0.00016758,2]
[398507123,1765764640773,-20305.0590346,0.00016767,2]
[398507124,1765764640782,-6766.0798,0.00016778,2]
[398507125,1765764640791,-20305.0590346,0.00016793,2]
[398507126,1765764640801,-507.56755309,0.00016799,2]
[398507127,1765764640811,-500.0,0.00016799,2]
[398507128,1765764640820,-500.0,0.00016799,2]
[398507130,1765764640829,-1010.2,0.000168,2]
[398507132,1765764640838,-1010.2,0.000168,3]
[398507134,1765764640848,-697.0,0.000168,2]
[398507135,1765764640857,-20305.0590346,0.0001682,2]
[398507136,1765764640866,-1838.106,0.00016827,2]
[398507137,1765764640875,-175.359,0.00016827,2]
[398507138,1765764640884,-957.62,0.00016832,2]
[398507139,1765764640894,-500.0,0.00016836,2]
[398507140,1765764640903,-457.65783755,0.00016836,2]
[398507141,1765764640913,-150.0,0.00016836,2]
[398507142,1765764640922,-500.0,0.00016836,2]
[398507143,1765764640931,-500.0,0.00016836,2]
[398507144,1765764640940,-150.0,0.00016836,2]
[398507145,1765764640949,-206.03941413,0.00016836,2]
[398507146,1765764640958,-500.0,0.00016836,2]
[398507147,1765764640968,-500.0,0.00016836,2]
[398507148,1765764640977,-1519.0,0.00016836,2]
[398507149,1765764640986,-277.47642516,0.00016836,2]
[398507150,1765764640995,-1000.0,0.00016836,2]
[398507151,1765764641005,-500.0,0.00016836,2]
[398507152,1765764641014,-500.0,0.00016836,2]
[398507153,1765764641023,-396.31200781,0.00016836,2]
[398507154,1765764641032,-500.0,0.00016836,2]
[398507155,1765764641042,-500.0,0.00016836,2]
[398507156,1765764641051,-500.0,0.00016836,2]
[398507157,1765764641062,-20305.0590346,0.00016847,2]
[398507158,1765764641073,-200.0,0.00016864,2]
[398507159,1765764641082,-20305.0590346,0.00016873,2]
[398507160,1765764641091,-500.0,0.00016877,2]
[398507162,1765764641101,-233.32,0.00016886,2]
[398507163,1765764641110,-500.0,0.00016895,2]
[398507164,1765764641120,-500.0,0.00016895,2]
[398507165,1765764641129,-500.0,0.00016899,2]
[398507166,1765764641138,-500.0,0.00016899,2]
[398507167,1765764641148,-500.0,0.00016899,2]
[398507168,1765764641157,-500.0,0.00016899,2]
[398507169,1765764641166,-500.0,0.00016899,2]
[398507170,1765764641176,-500.0,0.00016899,2]
[398507171,1765764641185,-500.0,0.00016899,2]
[398507172,1765764641195,-500.0,0.00016899,2]
[398507173,1765764641204,-500.0,0.00016899,2]
[398507174,1765764641215,-861.2,0.000169,2]
[398507175,1765764641224,-499.40201414,0.000169,2]
[398507176,1765764641235,-1236.89312992,0.000169,2]
[398507177,1765764641244,-20305.0590346,0.000169,2]
[398507178,1765764641254,-4328.65223721,0.000169,2]
[398507179,1765764641263,-1439.26830365,0.000169,2]
[398507180,1765764641272,-500.0,0.000169,2]
[398507181,1765764641282,-9144.90554874,0.000169,2]
[398507182,1765764641291,-911.0,0.00016901,2]
[398507183,1765764641301,-1199.21,0.00016901,2]
[398507184,1765764641310,-4798.0,0.00016901,2]
[398507185,1765764641319,-2426.0,0.00016901,2]
[398507186,1765764641328,-6522.0,0.00016901,2]
[398507187,1765764641337,-929.01929746,0.00016902,2]
[398507188,1765764641346,-2947.0,0.00016916,2]
[398507189,1765764641355,-481.25235646,0.00016921,2]
[398507190,1765764641364,-2135.0,0.00016959,2]
[398507191,1765764641375,-158.21277956,0.00016969,2]
[398507192,1765764641384,-500.0,0.00016972,2]
[398507193,1765764641393,-521.04088115,0.00016972,2]
[398507194,1765764641403,-500.0,0.00016973,2]
[398507195,1765764641413,-500.81562554,0.00016973,2]
[398507196,1765764641423,-167.01915454,0.00016973,2]
[398507197,1765764641433,-500.0,0.00016973,2]
[398507198,1765764641443,-500.0,0.00016973,2]
[398507199,1765764641453,-500.0,0.00016973,2]
[398507200,1765764641463,-500.0,0.00016973,2]
[398507201,1765764641472,-223.90146234,0.00016973,2]
[398507202,1765764641481,-500.0,0.00016973,2]
[398507203,1765764641490,-500.0,0.00016973,2]
[398507204,1765764641500,-169.17840548,0.00016973,2]
[398507205,1765764641509,-500.38142603,0.00016973,2]
[398507206,1765764641518,-500.0,0.00016973,2]
[398507207,1765764641528,-500.0,0.00016973,2]
[398507208,1765764641538,-535.77849194,0.00016973,2]
[398507209,1765764641547,-502.19695313,0.00016973,2]
[398507210,1765764641556,-315.21795353,0.00016973,2]
[398507211,1765764641565,-500.0,0.00016973,2]
[398507212,1765764641574,-500.0,0.00016973,2]
[398507213,1765764641583,-500.0,0.00016973,2]
[398507214,1765764641592,-500.0,0.00016973,2]
[398507215,1765764641602,-500.0,0.00016973,2]
[398507216,1765764641612,-500.0,0.00016973,2]
[398507217,1765764641621,-500.0,0.00016973,2]
[398507218,1765764641631,-500.0,0.00016973,2]
[398507219,1765764641640,-500.0,0.00016973,2]
[398507220,1765764641650,-500.0,0.00016973,2]
[398507221,1765764641660,-500.0,0.00016973,2]
[398507222,1765764641670,-500.0,0.00016973,2]
[398507223,1765764641680,-500.0,0.00016973,2]
[398507224,1765764641690,-500.0,0.00016973,2]
[398507225,1765764641701,-500.0,0.00016973,2]
[398507226,1765764641710,-500.0,0.00016973,2]
[398507227,1765764641720,-500.3352948,0.00016973,2]
[398507228,1765764641730,-515.49595078,0.00016973,2]
[398507229,1765764641739,-500.0,0.00016973,2]
[398507230,1765764641748,-150.0,0.00016973,2]
[398507231,1765764641758,-500.0,0.00016973,2]
[398507232,1765764641767,-530.63988118,0.00016973,2]
[398507233,1765764641776,-150.0,0.00016973,2]
[398507234,1765764641786,-500.0,0.00016973,2]
[398507235,1765764641794,-500.0,0.00016973,2]
[398507236,1765764641805,-1519.0,0.00016973,2]
[398507237,1765764641814,-1000.0,0.00016973,2]
[398507238,1765764641824,-500.0,0.00016973,2]
[398507239,1765764641833,-500.0,0.00016973,2]
[398507240,1765764641843,-289.42083569,0.00016973,2]
[398507241,1765764641852,-500.0,0.00016973,2]
[398507242,1765764641861,-500.0,0.00016973,2]
[398507243,1765764641870,-500.0,0.00016973,2]
[398507244,1765764641880,-150.0,0.00016973,2]
[398507245,1765764641889,-829.93707155,0.00016976,2]
[398507246,1765764641898,-1500.0,0.00016983,2]
[398507247,1765764641908,-1500.0,0.00016983,2]
[398507248,1765764641918,-1500.0,0.00016983,2]
[398507249,1765764641927,-1500.0,0.00016983,2]
[398507250,1765764641936,-1500.0,0.00016983,2]
[398507251,1765764641946,-1500.0,0.00016983,2]
[398507252,1765764641955,-1500.0,0.00016983,2]
[398507253,1765764641965,-1500.0,0.00016983,2]
[398507254,1765764641975,-1500.0,0.00016983,2]
[398507255,1765764641984,-1500.0,0.00016983,2]
[398507256,1765764641993,-1500.0,0.00016983,2]
[398507257,1765764642002,-1500.0,0.00016983,5]
[398507258,1765764642012,-500.0,0.00016986,2]
[398507259,1765764642022,-672321.94,0.00016986,2]
[398507260,1765764642031,-829.93707155,0.0001699,2]
[398507261,1765764642040,-829.93707155,0.0001699,2]
[398507262,1765764642052,-3417.4194012,0.00016994,2]
[398507263,1765764642067,-758.1149038,0.00016994,2]
[398507264,1765764642077,-6677.6605492,0.00016994,2]
[398507265,1765764642086,-151.0,0.00016997,2]
[398507266,1765764642095,-500.0,0.00016999,2]
[398507267,1765764642105,-500.0,0.00016999,2]
[398507268,1765764642115,-187.93981207,0.00016999,2]
[398507269,1765764642124,-189.75866884,0.00016999,2]
[398507270,1765764642134,-500.0,0.00016999,2]
[398507271,1765764642144,-317.07564339,0.00016999,2]
[398507272,1765764642154,-500.0,0.00016999,2]
[398507273,1765764642164,-500.0,0.00016999,2]
[398507274,1765764642174,-500.0,0.00016999,2]
[398507275,1765764642184,-500.0,0.00016999,2]
[398507276,1765764642193,-500.0,0.00016999,2]
[398507277,1765764642203,-513.93139164,0.00016999,2]
[398507278,1765764642213,-497.19392299,0.00016999,2]
[398507279,1765764642222,-500.0,0.00016999,2]
[398507280,1765764642232,-500.0,0.00016999,2]
[398507281,1765764642243,-504.39679474,0.00016999,2]
[398507282,1765764642252,-300.0,0.00016999,2]
[398507283,1765764642261,-500.0,0.00016999,2]
[398507284,1765764642270,-500.0,0.00016999,2]
[398507285,1765764642279,-159.1,0.00016999,2]
[398507286,1765764642288,-4656.0,0.00017,2]
[398507287,1765764642298,-176.208725,0.00017,2]
[398507288,1765764642308,-5936181.68581618,0.00017,2]
[398507289,1765764642335,-43292.92075224,0.00017,2]
[398507303,1765764644656,-311.98467859,0.00017,2]
[398507304,1765764644669,-524.9326699,0.00017,2]
[398507305,1765764644683,-4813798.19321451,0.00017,2]
[398507307,1765764645638,-355.36519998,0.00016901,2]
[398507308,1765764645649,-207.63480002,0.00016901,2]
[398507309,1765764645658,-735.00711529,0.00017,2]
[398507310,1765764645673,-4221.4,0.00017,2]
[398507311,1765764645685,-43299.132,0.00017,2]
[398507312,1765764645696,-4049.46328232,0.00017,2]
[398507313,1765764645706,-6424.66612144,0.00017,2]
[398507314,1765764645725,-574546.63255635,0.00017,2]
[398507315,1765764645736,-1350.77781384,0.00017,2]
[398507316,1765764645747,-2965.8690525,0.00017,2]
[398507317,1765764645758,-700.53782515,0.00017,2]
[398507318,1765764646025,-929.27452614,0.00017,2]
[398507319,1765764646037,-1820.0,0.00017,2]
[398507321,1765764646049,-1547.45823865,0.00017,2]
[398507322,1765764646072,-871.56206,0.00017,2]
[398507323,1765764646083,-1950.21131037,0.00017,2]
[398507324,1765764646095,-253.52,0.00017,2]
[398507325,1765764646106,-2910.41041625,0.00017,2]
[398507326,1765764646121,-325.0,0.00017,2]
[398507327,1765764646133,-4868.48281942,0.00017,2]
[398507328,1765764646157,-21540.88881389,0.00017,2]
[398507331,1765764646558,-118.39411593,0.00017,2]
[398507332,1765764646569,-4872.59661998,0.00017,2]
[398507333,1765764646581,-874.68026437,0.00017,2]
[398507334,1765764646592,-5708.928,0.00017,2]
[398507335,1765764646604,-421.265,0.00017,2]
[398507336,1765764646615,-272.95024502,0.00017,2]
[398507337,1765764646626,-965.2669603,0.00017,2]
[398507350,1765764694757,1821.117,0.00015592,2]
[398507351,1765764694849,178.10682778,0.00015592,2]
[398507360,1765764799422,383.64730253,0.00015711,2]
[398507361,1765764800529,-302.35448339,0.00015732,2]
[398507376,1765764913387,1192.4,0.00015438,2]
[398507377,1765764930659,320.94327231,0.000225,120]
[398507378,1765764958785,248.81,0.0001548,2]
[398507419,1765765147505,3575.61902632,0.0001572,2]
[398507434,1765765247810,1429.83,0.00015092,2]
[398507468,1765765538770,150.0,0.00015288,2]
[398507471,1765765569437,150.0,0.00014978,2]
[398507473,1765765579176,542.68710445,0.000209,30]
[398507526,1765765634247,1098.0,0.00015409,2]
[398507531,1765765639643,1098.0,0.00015409,2]
[398507533,1765765644412,1098.0,0.00015409,2]
[398507536,1765765649980,1098.0,0.00015409,2]
[398507537,1765765654036,1098.0,0.00015409,2]
[398507539,1765765658899,1098.0,0.00015409,2]
[398507554,1765765680503,183.39590269,0.0001571,2]
[398507560,1765765694859,313845.44732497,0.00015708,2]
[398507561,1765765694887,446154.55267503,0.00015708,2]
[398507583,1765765730278,2500.0,0.00015712,2]
[398507604,1765765776570,734.78112083,0.00015709,2]
[398507605,1765765776838,1288.36796986,0.00015709,2]
[398507606,1765765776867,1599.65305287,0.00015709,2]
[398507607,1765765787470,322.65923657,0.00015342,2]
[398507647,1765765831938,-1200.0,0.00015799,2]
[398507648,1765765831948,-1200.0,0.00015799,2]
[398507649,1765765831957,-300.0,0.00015799,2]
[398507650,1765765831967,-250.0,0.000158,2]
[398507651,1765765831976,-1010.2,0.000158,2]
[398507652,1765765831986,-1010.2,0.000158,3]
[398507653,1765765831995,-940.1748153,0.00015801,2]
[398507654,1765765832010,-790.58507617,0.00015801,2]
[398507655,1765765832046,-871.59889273,0.00015801,2]
[398507656,1765765832064,-4869.3690801,0.00015801,2]
[398507657,1765765832074,-253.40623062,0.00015807,2]
[398507658,1765765832085,-746.59376938,0.00015807,2]
[398507659,1765765832096,-300.0,0.00015808,2]
[398507660,1765765832112,-322.19265933,0.00015808,2]
[398507661,1765765832123,-265.36867533,0.00015808,2]
[398507662,1765765832133,-587.56133466,0.00015808,2]
[398507663,1765765832142,-587.56133466,0.00015808,2]
[398507664,1765765832153,-587.56133466,0.00015808,2]
[398507665,1765765832162,-587.56133466,0.00015808,2]
[398507666,1765765832171,-305.7321688,0.00015808,2]
[398507667,1765765832183,-281.82916586,0.00015808,2]
[398507668,1765765832193,-587.56133466,0.00015808,2]
[398507669,1765765832204,-587.56133466,0.00015808,2]
[398507670,1765765832214,-587.56133466,0.00015808,2]
[398507671,1765765832224,-587.56133466,0.00015808,2]
[398507672,1765765832233,-587.56133466,0.00015808,2]
[398507673,1765765832242,-587.56133466,0.00015808,2]
[398507674,1765765832252,-587.56133466,0.00015808,2]
[398507675,1765765832262,-587.56133466,0.00015808,2]
[398507676,1765765832272,-587.56133466,0.00015808,2]
[398507677,1765765832282,-587.56133466,0.00015808,2]
[398507678,1765765832291,-587.56133466,0.00015808,2]
[398507679,1765765832301,-587.56133466,0.00015808,2]
[398507680,1765765832310,-587.56133466,0.00015808,2]
[398507681,1765765832321,-587.56133466,0.00015808,2]
[398507682,1765765832331,-587.56133466,0.00015808,2]
[398507683,1765765832341,-587.56133466,0.00015808,2]
[398507684,1765765832350,-587.56133466,0.00015808,2]
[398507685,1765765832361,-587.56133466,0.00015808,2]
[398507686,1765765832370,-587.56133466,0.00015808,2]
[398507687,1765765832389,-587.56133466,0.00015808,2]
[398507688,1765765832408,-587.56133466,0.00015808,2]
[398507689,1765765832428,-587.56133466,0.00015808,2]
[398507690,1765765832447,-587.56133466,0.00015808,2]
[398507691,1765765832459,-587.56133466,0.00015808,2]
[398507692,1765765832470,-587.56133466,0.00015808,2]
[398507693,1765765832481,-587.56133466,0.00015808,2]
[398507694,1765765832492,-587.56133466,0.00015808,2]
[398507695,1765765832503,-587.56133466,0.00015808,2]
[398507696,1765765832514,-587.56133466,0.00015808,2]
[398507697,1765765832524,-587.56133466,0.00015808,2]
[398507698,1765765832533,-587.56133466,0.00015808,2]
[398507699,1765765832543,-587.56133466,0.00015808,2]
[398507700,1765765832552,-587.56133466,0.00015808,2]
[398507701,1765765832561,-587.56133466,0.00015808,2]
[398507702,1765765832570,-587.56133466,0.00015808,2]
[398507703,1765765832579,-587.56133466,0.00015808,2]
[398507704,1765765832589,-587.56133466,0.00015808,2]
[398507705,1765765832598,-587.56133466,0.00015808,2]
[398507706,1765765832608,-587.56133466,0.00015808,2]
[398507707,1765765832617,-587.56133466,0.00015808,2]
[398507708,1765765832627,-587.56133466,0.00015808,2]
[398507709,1765765832638,-587.56133466,0.00015808,2]
[398507710,1765765832648,-587.56133466,0.00015808,2]
[398507711,1765765832657,-587.56133466,0.00015808,2]
[398507712,1765765832667,-587.56133466,0.00015808,2]
[398507713,1765765832678,-587.56133466,0.00015808,2]
[398507714,1765765832687,-587.56133466,0.00015808,2]
[398507715,1765765832696,-587.56133466,0.00015808,2]
[398507716,1765765832707,-587.56133466,0.00015808,2]
[398507717,1765765832717,-587.56133466,0.00015808,2]
[398507718,1765765832726,-587.56133466,0.00015808,2]
[398507719,1765765832736,-587.56133466,0.00015808,2]
[398507720,1765765832745,-587.56133466,0.00015808,2]
[398507721,1765765832754,-587.56133466,0.00015808,2]
[398507722,1765765832763,-587.56133466,0.00015808,2]
[398507723,1765765832774,-587.56133466,0.00015808,2]
[398507724,1765765832783,-587.56133466,0.00015808,2]
[398507725,1765765832792,-1824.515,0.00015809,2]
[398507726,1765765832801,-175.359,0.00015809,2]
[398507727,1765765832810,-150.99,0.00015809,2]
[398507728,1765765832820,-999.99,0.00015809,2]
[398507729,1765765832829,-4731.66,0.00015809,2]
[398507730,1765765832839,-13922.06,0.00015809,2]
[398507731,1765765832848,-382.47929433,0.00015809,2]
[398507732,1765765832857,-174.52016198,0.00015809,2]
[398507733,1765765832867,-1259.78,0.0001581,2]
[398507734,1765765832876,-4575.2656658,0.0001581,2]
[398507735,1765765832889,-4044.64810372,0.0001581,2]
[398507736,1765765832900,-1380.07623048,0.0001581,2]
[398507737,1765765832908,-6602.79,0.0001581,2]
[398507738,1765765832918,-1598.92,0.0001581,2]
[398507739,1765765832927,-1000.0,0.0001581,2]
[398507740,1765765832936,-10474.63331486,0.0001581,2]
[398507741,1765765832947,-449.34849389,0.0001581,2]
[398507742,1765765832957,-3773.8207,0.0001581,2]
[398507744,1765765837950,-585.46290131,0.00015808,2]
[398507745,1765765837959,-585.46290131,0.00015808,2]
[398507746,1765765837969,-585.46290131,0.00015808,2]
[398507747,1765765837978,-585.46290131,0.00015808,2]
[398507748,1765765837988,-585.46290131,0.00015808,2]
[398507749,1765765837997,-585.46290131,0.00015808,2]
[398507750,1765765838006,-585.46290131,0.00015808,2]
[398507751,1765765838016,-585.46290131,0.00015808,2]
[398507752,1765765838025,-585.46290131,0.00015808,2]
[398507753,1765765838035,-585.46290131,0.00015808,2]
[398507754,1765765838044,-585.46290131,0.00015808,2]
[398507755,1765765838054,-585.46290131,0.00015808,2]